bitfinex/quotes_SOLUSD_20260214
["timestamp","ask_amount","ask_price","bid_price","bid_amount"]
[1771111044176,3.8203181,88.857,88.824,2.58344792]
[1771111044397,3.8203181,88.857,88.82,2.84185163]
[1771111044691,3.8203181,88.857,88.82,14.10054239]
[1771111044899,3.8203181,88.855,88.82,14.10054239]
[1771111048502,3.8203181,88.853,88.82,16.69714577]
[1771111048698,3.8203181,88.853,88.821,2.59660338]
[1771111049392,11.25467068,88.852,88.822,11.258472]
[1771111049596,3.8203181,88.851,88.823,2.59914451]
[1771111050100,3.8203181,88.851,88.83,2.84185163]
[1771111050303,3.8203181,88.851,88.83,5.44099614]
[1771111052203,3.8203181,88.851,88.83,13.85657163]
[1771111053591,3.8203181,88.857,88.831,2.60902048]
[1771111053999,3.8203181,88.879,88.831,2.60902048]
[1771111054204,3.8203181,88.873,88.84,2.84185163]
[1771111054705,3.8203181,88.873,88.841,2.61141899]
[1771111055393,2.84185163,88.87,88.83,14.09927875]
[1771111055595,3.8203181,88.869,88.83,11.25742712]
[1771111055796,3.8203181,88.869,88.83,13.87121706]
[1771111056306,3.8203181,88.869,88.83,11.25742712]
[1771111056501,11.25264437,88.868,88.825,11.25809175]
[1771111056699,3.8203181,88.867,88.826,2.61613367]
[1771111059196,3.8203181,88.865,88.83,5.46259229]
[1771111061011,11.25315088,88.864,88.831,2.62745462]
[1771111061311,3.55477389,88.859,88.823,2.62745462]
[1771111061615,3.55477389,88.859,88.822,11.25836928]
[1771111061999,3.55477389,88.859,88.822,13.88801067]
[1771111062415,3.55477389,88.859,88.823,2.63180304]
[1771111063197,3.66146247,88.857,88.825,2.63393987]
[1771111065313,3.66146247,88.855,88.826,11.25796501]
[1771111065502,3.66146247,88.855,88.826,13.89816922]
[1771111065705,3.66146247,88.855,88.827,2.64020421]
[1771111066021,11.25368081,88.86,88.831,2.64020421]
[1771111066199,3.66146247,88.859,88.831,2.64020421]
[1771111067822,3.66146247,88.869,88.832,11.25720461]
[1771111068120,3.66146247,88.868,88.833,2.64426143]
[1771111070822,3.66146247,88.866,88.834,11.25695116]
[1771111071206,3.66146247,88.866,88.828,11.25761943]
[1771111071405,3.66146247,88.866,88.829,2.65209999]
[1771111071601,3.66146247,88.866,88.831,2.65209999]
[1771111073310,3.66146247,88.864,88.831,2.65209999]
[1771111074128,3.66146247,88.864,88.832,13.91309013]
[1771111074426,3.66146247,88.864,88.833,2.65588552]
[1771111074624,3.66146247,88.874,88.841,2.65774573]
[1771111075205,11.25159664,88.877,88.851,2.65774573]
[1771111075419,3.66146247,88.882,88.851,2.65774573]
[1771111075933,3.66146247,88.882,88.861,2.65958458]
[1771111076313,3.66146247,88.882,88.862,2.65958458]
[1771111076528,0.1,88.89,88.871,2.66140231]
[1771111076748,3.76146247,88.89,88.862,2.66140231]
[1771111077031,3.0,88.935,88.881,2.46140231]
[1771111077208,3.76146247,88.93,88.92,2.84185163]
[1771111077404,3.0,88.935,88.908,2.46140231]
[1771111077405,0.88570908,88.935,88.908,2.46140231]
[1771111077604,12.12995248,88.935,88.908,2.46140231]
[1771111077823,12.12995248,88.935,88.862,11.70860529]
[1771111077824,3.66146247,88.919,88.88,2.84185163]
[1771111078032,3.66146247,88.919,88.865,4.61729252]
[1771111078033,3.66146247,88.919,88.863,42.38]
[1771111078230,40.2403702,88.935,88.863,42.38]
[1771111078231,0.88570908,88.935,88.91,2.84185163]
[1771111078433,11.34229831,88.95,88.88,2.84185163]
[1771111078434,3.66146247,88.929,88.88,2.84185163]
[1771111078635,3.66146247,88.919,88.87,2.84185163]
[1771111078934,34.36,88.944,88.864,39.38602808]
[1771111078935,3.66146247,88.909,88.864,11.25315088]
[1771111079927,3.66146247,88.909,88.865,3.66679134]
[1771111080242,3.66146247,88.909,88.871,3.66679134]
[1771111080442,3.66146247,88.907,88.872,3.66852698]
[1771111080935,3.66146247,88.915,88.881,3.66852698]
[1771111081141,2.84185163,88.93,88.871,11.25226276]
[1771111081142,3.66146247,88.939,88.891,3.66852698]
[1771111081441,3.66146247,88.939,88.871,39.38292405]
[1771111081442,3.66146247,88.938,88.911,3.66852698]
[1771111082228,3.66146247,88.938,88.902,3.67024268]
[1771111082632,3.66146247,88.936,88.89,2.84185163]
[1771111082830,2.84185163,88.92,88.88,2.84185163]
[1771111083038,3.66146247,88.919,88.879,53.12744206]
[1771111083923,56.21267639,88.948,88.879,53.12744206]
[1771111083924,3.66146247,88.909,88.879,53.12744206]
[1771111084320,3.66146247,88.899,88.853,11.25454402]
[1771111084637,3.66146247,88.879,88.845,11.25549256]
[1771111085939,3.66146247,88.877,88.84,2.84185163]
[1771111086132,3.66146247,88.869,88.83,2.84185163]
[1771111086636,3.66146247,88.869,88.83,6.52175255]
[1771111086835,3.66146247,88.869,88.831,3.67990092]
[1771111087237,3.66146247,88.867,88.832,11.25720461]
[1771111087624,3.66146247,88.867,88.826,11.25793994]
[1771111087828,3.66146247,88.859,88.81,2.84185163]
[1771111088042,3.66146247,88.849,88.81,2.84185163]
[1771111089134,11.25517738,88.848,88.817,53.76098099]
[1771111089443,11.25517738,88.848,88.81,2.84185163]
[1771111089444,3.66146247,88.829,88.791,3.68352812]
[1771111090250,3.66146247,88.829,88.793,3.82422344]
[1771111092238,3.66146247,88.838,88.801,3.82422344]
[1771111094146,3.7611892,88.836,88.801,3.82422344]
[1771111094946,11.25657102,88.837,88.801,3.82422344]
[1771111095146,11.25519059,88.848,88.821,3.63584359]
[1771111095649,3.7611892,88.852,88.821,3.63584359]
[1771111095854,3.7611892,88.872,88.831,3.63584359]
[1771111096252,3.7611892,88.87,88.833,3.63584359]
[1771111097347,3.7611892,88.87,88.841,3.63584359]
[1771111098037,11.25139956,88.878,88.841,3.63584359]
[1771111098249,11.25139956,88.878,88.851,11.25473899]
[1771111098452,3.7611892,88.882,88.852,3.63584359]
[1771111098750,3.7611892,88.89,88.861,3.63584359]
[1771111099845,3.7611892,88.889,88.846,11.25538037]
[1771111100046,3.7611892,88.879,88.835,3.63584359]
[1771111100546,3.7611892,88.877,88.84,11.256116]
[1771111101858,3.7611892,88.875,88.84,18.35581653]
[1771111102043,3.7611892,88.875,88.841,3.63584359]
[1771111102245,3.7611892,88.875,88.85,7.09970053]
[1771111102435,3.7611892,88.875,88.843,3.63584359]
[1771111104851,3.7611892,88.873,88.84,7.09970053]
[1771111105149,3.7611892,88.873,88.835,3.63584359]
[1771111105330,3.7611892,88.873,88.84,7.09970053]
[1771111105740,3.7611892,88.873,88.84,10.73554412]
[1771111106157,3.7611892,88.871,88.84,10.73554412]
[1771111106350,3.7611892,88.871,88.842,3.63584359]
[1771111106557,3.7611892,88.879,88.851,3.63584359]
[1771111108250,11.2504922,88.885,88.861,3.63584359]
[1771111108650,3.7611892,88.888,88.861,3.63584359]
[1771111109152,3.7611892,88.888,88.87,7.09970053]
[1771111109751,3.7611892,88.888,88.861,3.63584359]
[1771111110457,3.7611892,88.886,88.861,3.63584359]
[1771111110658,3.7611892,88.879,88.83,10.73554412]
[1771111110960,3.7611892,88.879,88.831,3.63584359]
[1771111111541,3.7611892,88.879,88.84,7.09970053]
[1771111111769,3.7611892,88.879,88.84,10.73554412]
[1771111113149,3.7611892,88.877,88.841,3.63584359]
[1771111114151,3.7611892,88.877,88.842,3.63584359]
[1771111115267,3.7611892,88.875,88.833,3.63584359]
[1771111115460,3.7611892,88.873,88.833,3.63584359]
[1771111116270,3.7611892,88.871,88.834,11.25695116]
[1771111116658,59.24,88.87,88.834,11.25695116]
[1771111116953,3.7611892,88.869,88.834,11.25695116]
[1771111117868,3.7611892,88.867,88.834,11.25695116]
[1771111118469,3.7611892,88.867,88.832,3.63584359]
[1771111118673,3.7611892,88.859,88.818,3.63584359]
[1771111118878,3.7611892,88.849,88.81,3.63584359]
[1771111119553,3.7611892,88.839,88.79,2.84033519]
[1771111119760,3.7611892,88.817,88.773,3.63584359]
[1771111120271,3.7611892,88.817,88.775,3.81972893]
[1771111121274,3.83532407,88.809,88.754,15.72]
[1771111121571,3.83532407,88.817,88.78,7.11024839]
[1771111121783,15.09455664,88.816,88.78,7.11024839]
[1771111121973,3.83532407,88.815,88.78,7.11024839]
[1771111122279,7.11024839,88.83,88.754,15.72]
[1771111122280,3.83532407,88.827,88.8,7.11024839]
[1771111122656,3.83532407,88.827,88.79,7.11024839]
[1771111123262,3.83532407,88.827,88.791,3.81665284]
[1771111124679,3.83310285,88.825,88.791,15.07897925]
[1771111125061,3.83310285,88.825,88.792,3.81727404]
[1771111127772,3.83310285,88.823,88.786,11.26294068]
[1771111127962,3.83310285,88.823,88.776,11.26421829]
[1771111128286,3.83310285,88.819,88.771,3.82499083]
[1771111129575,3.83310285,88.817,88.772,3.83223308]
[1771111130074,3.83310285,88.817,88.78,7.11024839]
[1771111131278,3.83310285,88.815,88.781,3.83579194]
[1771111133479,3.83310285,88.813,88.781,3.83579194]
[1771111134581,11.25885992,88.819,88.783,3.84962327]
[1771111134784,11.25885992,88.819,88.791,3.84962327]
[1771111135082,11.25809175,88.825,88.791,3.84962327]
[1771111135388,3.83310285,88.824,88.791,3.84962327]
[1771111136685,3.83310285,88.822,88.78,7.11024839]
[1771111136889,3.83310285,88.819,88.771,11.26491046]
[1771111137084,3.83310285,88.817,88.771,11.26491046]
[1771111138794,3.83310285,88.815,88.77,10.96655131]
[1771111138986,3.83310285,88.815,88.77,7.11024839]
[1771111139190,3.83310285,88.809,88.765,11.2656972]
[1771111139570,3.83310285,88.809,88.77,7.11024839]
[1771111139770,3.83310285,88.809,88.77,10.97628581]
[1771111140065,3.83310285,88.809,88.771,3.86603742]
[1771111140887,39.40731399,88.816,88.755,61.5]
[1771111140888,3.83310285,88.824,88.801,3.86920801]
[1771111141478,3.83310285,88.824,88.8,2.84241245]
[1771111141674,3.83310285,88.824,88.793,3.87234217]
[1771111141675,3.83310285,88.822,88.793,3.87234217]
[1771111141884,3.83310285,88.819,88.785,11.26308822]
[1771111142083,3.83310285,88.809,88.769,3.87234217]
[1771111142285,3.83310285,88.814,88.771,3.87234217]
[1771111142466,3.83310285,88.822,88.781,3.87544034]
[1771111142969,11.25859875,88.821,88.783,3.87544034]
[1771111143170,3.83310285,88.82,88.783,3.87544034]
[1771111143991,3.83310285,88.819,88.783,3.87544034]
[1771111145287,3.83310285,88.817,88.771,43.30882075]
[1771111145498,3.83310285,88.817,88.772,3.88452295]
[1771111146394,11.25923257,88.816,88.774,3.88452295]
[1771111146589,3.83310285,88.815,88.774,3.88452295]
[1771111151693,3.83310285,88.809,88.767,3.90177056]
[1771111151910,3.83310285,88.809,88.765,42.36]
[1771111152079,39.4082014,88.814,88.711,61.5]
[1771111152080,3.83310285,88.799,88.752,27.89961348]
[1771111152418,3.83310285,88.799,88.753,3.90177056]
[1771111153602,3.8477662,88.797,88.753,3.90177056]
[1771111154310,3.8477662,88.796,88.753,3.90177056]
[1771111154507,3.8477662,88.796,88.754,11.26709782]
[1771111154800,3.8477662,88.794,88.755,3.84496184]
[1771111156510,3.8477662,88.789,88.752,23.99784292]
[1771111157178,7.11443551,88.77,88.752,23.99784292]
[1771111157418,3.8477662,88.769,88.752,23.99784292]
[1771111157906,3.8477662,88.769,88.74,0.2]
[1771111158101,3.8477662,88.767,88.74,0.2]
[1771111158307,3.8477662,88.765,88.74,0.2]
[1771111158886,3.8477662,88.749,88.691,11.27498929]
[1771111159086,3.8477662,88.739,88.699,11.27407101]
[1771111159315,3.8477662,88.729,88.69,4.04496184]
[1771111159487,3.8477662,88.727,88.69,0.2]
[1771111159688,3.8477662,88.727,88.694,3.84496184]
[1771111159903,3.8477662,88.734,88.7,4.04496184]
[1771111160113,59.4,88.736,88.69,0.2]
[1771111160114,7.11443551,88.72,88.69,0.2]
[1771111160291,3.8477662,88.697,88.67,0.2]
[1771111160705,3.8477662,88.689,88.65,3.84496184]
[1771111161005,3.8477662,88.679,88.637,11.28193082]
[1771111161191,3.8477662,88.679,88.642,11.28132698]
[1771111161390,7.11443551,88.69,88.65,3.84496184]
[1771111161391,3.8477662,88.687,88.65,3.84496184]
[1771111161599,39.45973978,88.698,88.623,42.5]
[1771111161600,3.8477662,88.679,88.639,15.12665399]
[1771111162003,3.8477662,88.679,88.639,3.84496184]
[1771111162203,3.8477662,88.679,88.641,3.84496184]
[1771111162516,3.8477662,88.677,88.633,3.84496184]
[1771111163299,3.8477662,88.669,88.625,15.12842733]
[1771111163587,3.8477662,88.669,88.626,3.84496184]
[1771111163783,3.8477662,88.669,88.631,3.84496184]
[1771111164402,3.8477662,88.669,88.623,42.5]
[1771111164403,3.8477662,88.669,88.632,11.28260673]
[1771111164605,3.8477662,88.667,88.632,11.28260673]
[1771111166017,3.8477662,88.667,88.623,46.34496184]
[1771111166309,11.27828028,88.666,88.624,11.2836252]
[1771111166518,3.8477662,88.665,88.624,11.2836252]
[1771111167413,3.8477662,88.665,88.625,3.84496184]
[1771111167806,3.8477662,88.665,88.631,3.84496184]
[1771111168216,3.8477662,88.665,88.623,42.5]
[1771111168402,3.8477662,88.661,88.624,3.84496184]
[1771111168598,3.8477662,88.661,88.616,11.28464385]
[1771111168902,3.8477662,88.659,88.617,3.84496184]
[1771111171805,3.8477662,88.657,88.611,11.28527331]
[1771111172026,3.8477662,88.657,88.612,3.84496184]
[1771111172716,3.8477662,88.657,88.62,10.95939735]
[1771111173606,3.8477662,88.655,88.62,3.84496184]
[1771111173805,3.8477662,88.629,88.58,0.2]
[1771111174008,3.8477662,88.609,88.58,0.2]
[1771111174238,59.64,88.608,88.581,3.84496184]
[1771111174528,59.64,88.608,88.582,3.84496184]
[1771111174729,7.11213634,88.626,88.582,3.84496184]
[1771111174730,59.64,88.621,88.582,3.84496184]
[1771111174904,7.11213634,88.626,88.591,3.84496184]
[1771111175106,3.8477662,88.625,88.591,3.84496184]
[1771111175318,3.8477662,88.619,88.581,3.84496184]
[1771111175528,3.8477662,88.619,88.582,3.84496184]
[1771111175916,15.13215537,88.618,88.582,3.84496184]
[1771111176127,3.8477662,88.617,88.582,3.84496184]
[1771111177505,3.8477662,88.617,88.58,4.04496184]
[1771111178126,3.8477662,88.615,88.58,4.04496184]
[1771111179013,3.8477662,88.615,88.582,3.84496184]
[1771111180529,3.85928508,88.624,88.584,3.83754665]
[1771111180833,3.85928508,88.623,88.584,3.83754665]
[1771111181015,3.85928508,88.619,88.584,3.83754665]
[1771111181215,3.85928508,88.599,88.57,0.1]
[1771111181719,3.85928508,88.589,88.57,0.1]
[1771111182430,3.85928508,88.589,88.55,0.1]
[1771111182431,3.85928508,88.569,88.55,0.1]
[1771111182729,11.28910262,88.581,88.552,3.83754665]
[1771111184017,3.86325185,88.569,88.55,0.1]
[1771111184222,59.68,88.573,88.551,3.83027165]
[1771111184734,11.29024974,88.572,88.55,0.1]
[1771111184909,3.86325185,88.569,88.526,3.83027165]
[1771111185107,3.86325185,88.559,88.52,11.39677254]
[1771111185327,3.86325185,88.559,88.521,3.83027165]
[1771111186415,3.86325185,88.549,88.52,0.1]
[1771111186614,3.86325185,88.539,88.51,0.1]
[1771111186917,3.86325185,88.535,88.51,0.1]
[1771111187421,39.5319418,88.536,88.51,0.1]
[1771111187422,63.60325185,88.534,88.51,0.1]
[1771111187620,3.86325185,88.533,88.51,0.1]
[1771111188021,11.29484051,88.536,88.511,3.83027165]
[1771111189034,3.86325185,88.561,88.52,7.11443551]
[1771111189333,59.78,88.569,88.531,3.83027165]
[1771111189515,59.78,88.569,88.541,3.83027165]
[1771111190325,59.8,88.581,88.541,3.83027165]
[1771111191116,11.28923007,88.58,88.542,11.29407512]
[1771111191335,11.28923007,88.58,88.543,3.83027165]
[1771111192240,3.86325185,88.595,88.551,3.83027165]
[1771111192735,59.82,88.596,88.551,3.83027165]
[1771111192736,3.86325185,88.593,88.551,3.83027165]
[1771111193444,11.28770092,88.592,88.553,3.83027165]
[1771111194329,11.28700914,88.598,88.561,3.83027165]
[1771111195337,11.28700914,88.598,88.563,3.83027165]
[1771111196225,3.86325185,88.597,88.563,3.83027165]
[1771111197330,15.15044314,88.596,88.563,3.83027165]
[1771111198641,3.86325185,88.595,88.563,3.83027165]
[1771111199042,11.28719129,88.596,88.565,3.83027165]
[1771111199435,11.28719129,88.596,88.564,11.29126959]
[1771111199436,11.28661147,88.601,88.571,3.83027165]
[1771111200742,3.86325185,88.626,88.591,3.83027165]
[1771111200939,3.86325185,88.619,88.573,3.83027165]
[1771111201246,7.11443551,88.62,88.565,3.83027165]
[1771111201247,7.11443551,88.61,88.565,3.83027165]
[1771111201440,11.28397188,88.622,88.591,3.83027165]
[1771111202033,3.86325185,88.621,88.582,3.83027165]
[1771111202346,3.86325185,88.619,88.571,3.83027165]
[1771111202738,3.86325185,88.617,88.573,3.83027165]
[1771111203047,11.28438917,88.618,88.581,3.83027165]
[1771111203942,5.72571504,88.627,88.601,3.83027165]
[1771111204136,11.28337056,88.626,88.601,3.83027165]
[1771111205146,5.72571504,88.627,88.569,42.48]
[1771111205147,5.72571504,88.627,88.603,3.83027165]
[1771111206629,5.72571504,88.627,88.602,11.28642694]
[1771111206630,5.72571504,88.627,88.605,3.83027165]
[1771111206949,5.72571504,88.627,88.61,7.11443551]
[1771111207147,11.28149417,88.641,88.612,3.83027165]
[1771111208048,11.28149417,88.641,88.604,11.28617218]
[1771111208049,11.28092233,88.646,88.621,3.83027165]
[1771111208752,3.86325185,88.653,88.611,3.83027165]
[1771111209047,3.86325185,88.653,88.591,42.44]
[1771111209048,3.86325185,88.639,88.602,3.83027165]
[1771111209430,3.86325185,88.639,88.611,3.83027165]
[1771111209852,7.11443551,88.65,88.602,3.83027165]
[1771111210057,3.86325185,88.649,88.602,3.83027165]
[1771111210360,2.53334565,88.639,88.602,3.83027165]
[1771111210732,11.28197028,88.637,88.602,3.83027165]
[1771111211245,11.27917075,88.659,88.621,3.83027165]
[1771111212053,39.47709763,88.659,88.621,3.83027165]
[1771111212246,3.86325185,88.649,88.604,3.83027165]
[1771111212848,4.01885376,88.647,88.606,3.8036821]
[1771111214438,4.01885376,88.639,88.59,10.91811761]
[1771111215351,39.48288698,88.646,88.581,3.8036821]
[1771111215352,4.01885376,88.629,88.581,3.8036821]
[1771111215753,4.01885376,88.629,88.582,3.8036821]
[1771111216554,4.01885376,88.627,88.584,3.8036821]
[1771111216749,11.28311594,88.628,88.591,3.8036821]
[1771111216954,11.28311594,88.628,88.601,3.8036821]
[1771111217154,4.01885376,88.627,88.592,3.8036821]
[1771111218740,4.01885376,88.625,88.592,3.8036821]
[1771111219745,11.28337056,88.626,88.594,3.8036821]
[1771111220737,11.28260673,88.632,88.595,11.28731869]
[1771111220962,15.30146049,88.632,88.596,3.8036821]
[1771111221660,15.30146049,88.632,88.6,7.14015637]
[1771111221842,15.30146049,88.632,88.601,3.8036821]
[1771111223780,15.30146049,88.632,88.595,11.28731869]
[1771111223781,11.28178453,88.639,88.62,7.14015637]
[1771111224069,11.28178453,88.639,88.611,3.8036821]
[1771111228761,4.01885376,88.639,88.611,3.8036821]
[1771111228959,4.01885376,88.639,88.6,2.85440824]
[1771111229150,4.01885376,88.637,88.595,3.8036821]
[1771111229346,4.01885376,88.637,88.601,3.8036821]
[1771111230669,4.01885376,88.635,88.603,3.8036821]
[1771111230966,11.28209756,88.636,88.611,3.8036821]
[1771111231467,4.01885376,88.635,88.603,3.8036821]
[1771111231673,2.85440824,88.63,88.595,3.8036821]
[1771111231970,4.01885376,88.629,88.595,3.8036821]
[1771111232547,4.01885376,88.629,88.571,70.4056806]
[1771111232548,4.01885376,88.627,88.596,3.8036821]
[1771111233962,2.85440824,88.62,88.588,3.8036821]
[1771111234171,4.01885376,88.653,88.611,3.8036821]
[1771111234465,45.08894724,88.714,88.611,3.8036821]
[1771111234466,4.01885376,88.65,88.611,3.8036821]
[1771111234661,4.01885376,88.648,88.613,3.8036821]
[1771111235061,4.01885376,88.629,88.58,7.13473071]
[1771111235246,4.01885376,88.629,88.57,7.13473071]
[1771111236251,4.01885376,88.629,88.58,7.13473071]
[1771111236880,4.01885376,88.627,88.59,7.13473071]
[1771111237053,4.01885376,88.627,88.591,3.8036821]
[1771111239458,4.01885376,88.625,88.581,15.09278044]
[1771111239671,4.01885376,88.625,88.582,3.8036821]
[1771111239980,4.01885376,88.619,88.574,3.8036821]
[1771111240164,4.01885376,88.619,88.581,4.04749902]
[1771111240561,4.01885376,88.619,88.574,4.04749902]
[1771111241071,3.99469732,88.609,88.558,4.04749902]
[1771111241378,3.99469732,88.579,88.519,4.04749902]
[1771111241553,3.99469732,88.559,88.521,4.04749902]
[1771111243474,7.13473071,88.57,88.523,3.8569898]
[1771111243475,11.29203459,88.558,88.523,3.8569898]
[1771111244076,11.29203459,88.558,88.531,3.8569898]
[1771111245187,3.8883513,88.566,88.531,3.8569898]
[1771111245957,3.8883513,88.559,88.524,11.29633114]
[1771111246376,3.8883513,88.559,88.525,3.8569898]
[1771111246679,39.51810493,88.567,88.511,28.24507688]
[1771111246680,3.8883513,88.549,88.511,3.8569898]
[1771111247378,3.8883513,88.547,88.511,3.8569898]
[1771111247569,3.8883513,88.547,88.512,3.8569898]
[1771111249581,3.8883513,88.529,88.51,0.1]
[1771111251986,3.8883513,88.539,88.511,3.8569898]
[1771111252283,11.29377832,88.545,88.511,3.8569898]
[1771111252479,11.29377832,88.545,88.52,7.13473071]
[1771111252686,3.8883513,88.539,88.51,0.1]
[1771111253379,3.8883513,88.519,88.49,0.1]
[1771111253977,3.8883513,88.517,88.49,0.1]
[1771111255102,3.8883513,88.515,88.49,0.1]
[1771111256868,3.8883513,88.509,88.48,0.1]
[1771111257170,3.8883513,88.507,88.48,0.1]
[1771111257482,3.8883513,88.507,88.48,3.9569898]
[1771111258583,11.29866901,88.506,88.48,3.9569898]
[1771111259403,3.8883513,88.518,88.482,3.8569898]
[1771111260687,7.13473071,88.53,88.48,7.23473071]
[1771111260688,3.8883513,88.534,88.5,7.13473071]
[1771111260993,3.8883513,88.534,88.483,11.30160595]
[1771111260994,3.8883513,88.542,88.51,7.13473071]
[1771111262693,11.29420268,88.541,88.513,3.8569898]
[1771111263068,60.16,88.558,88.521,3.8569898]
[1771111263069,11.29239137,88.556,88.521,3.8569898]
[1771111263269,56.44224298,88.587,88.531,3.8569898]
[1771111263270,3.8883513,88.576,88.531,3.8569898]
[1771111263487,3.8883513,88.576,88.541,3.8569898]
[1771111263869,3.8883513,88.576,88.551,3.8569898]
[1771111264789,11.28935752,88.579,88.551,3.8569898]
[1771111265289,15.17770882,88.579,88.551,3.8569898]
[1771111265795,15.17770882,88.579,88.552,11.29279971]
[1771111265977,15.17770882,88.579,88.553,3.8569898]
[1771111266693,11.28935752,88.579,88.553,3.8569898]
[1771111266892,3.8883513,88.576,88.534,3.8569898]
[1771111267090,3.8883513,88.576,88.536,3.8569898]
[1771111267692,3.8883513,88.569,88.536,3.8569898]
[1771111268593,3.8883513,88.567,88.536,3.8569898]
[1771111268777,3.8883513,88.567,88.54,7.13473071]
[1771111268977,3.8883513,88.567,88.541,3.8569898]
[1771111269994,3.8883513,88.567,88.533,3.8569898]
[1771111270300,3.8883513,88.559,88.521,11.29674086]
[1771111270889,3.8883513,88.557,88.521,11.29674086]
[1771111271786,3.8883513,88.557,88.522,3.8569898]
[1771111271986,11.29138096,88.564,88.531,3.8569898]
[1771111272390,3.8883513,88.579,88.541,3.8569898]
[1771111272807,3.8883513,88.575,88.541,3.8569898]
[1771111273005,4.00337289,88.573,88.541,3.8569898]
[1771111274191,4.00337289,88.573,88.541,15.15111029]
[1771111274691,11.28931698,88.58,88.551,3.75078642]
[1771111274905,11.28931698,88.58,88.541,11.29412049]
[1771111274906,11.28870817,88.585,88.561,3.75078642]
[1771111275111,11.28870817,88.585,88.56,7.13473071]
[1771111275112,11.28808317,88.589,88.563,3.75078642]
[1771111276405,4.00337289,88.588,88.563,3.75078642]
[1771111276589,4.00337289,88.588,88.554,11.29241756]
[1771111276794,4.00337289,88.588,88.555,3.75078642]
[1771111277212,11.28833801,88.587,88.555,3.75078642]
[1771111278216,11.28833801,88.587,88.557,3.75078642]
[1771111278416,4.00337289,88.586,88.557,3.75078642]
[1771111278619,4.00337289,88.586,88.547,3.75078642]
[1771111279201,4.00337289,88.584,88.548,11.29330984]
[1771111279602,4.00337289,88.584,88.548,15.04409626]
[1771111279827,4.00337289,88.584,88.551,3.75078642]
[1771111281018,4.00337289,88.582,88.551,3.75078642]
[1771111281394,4.00337289,88.582,88.54,7.14608643]
[1771111281602,4.00337289,88.579,88.531,3.75078642]
[1771111282524,4.00337289,88.577,88.532,3.75078642]
[1771111283031,4.00337289,88.575,88.532,3.75078642]
[1771111284698,4.00337289,88.573,88.532,3.75078642]
[1771111285419,4.00337289,88.573,88.534,3.75078642]
[1771111288219,4.00337289,88.571,88.534,3.75078642]
[1771111290204,11.29050468,88.57,88.541,3.75078642]
[1771111291820,4.00337289,88.584,88.551,3.75078642]
[1771111292221,11.28884774,88.583,88.553,3.75078642]
[1771111293104,4.00337289,88.582,88.553,3.75078642]
[1771111297526,4.00337289,88.587,88.555,3.75078642]
[1771111297723,4.00337289,88.586,88.555,3.75078642]
[1771111300720,4.0726154,88.584,88.555,3.75078642]
[1771111301837,4.0726154,88.582,88.545,3.87323976]
[1771111302019,4.0726154,88.582,88.542,3.87323976]
[1771111302222,4.0726154,88.58,88.542,3.87323976]
[1771111302739,4.0726154,88.578,88.542,3.87323976]
[1771111305141,3.75780503,88.576,88.542,3.87323976]
[1771111307223,3.75780503,88.574,88.534,41.94]
[1771111307429,3.75780503,88.572,88.527,15.29922785]
[1771111307628,3.75780503,88.572,88.528,4.0033601]
[1771111309453,3.75780503,88.569,88.53,4.0033601]
[1771111311548,3.75780503,88.567,88.532,4.0033601]
[1771111312948,3.75780503,88.565,88.532,4.0033601]
[1771111314928,3.75780503,88.563,88.532,4.0033601]
[1771111315953,3.75780503,88.561,88.532,4.0033601]
[1771111316751,3.75780503,88.561,88.534,4.0033601]
[1771111317448,39.52033603,88.562,88.512,11.29779998]
[1771111317449,3.75780503,88.559,88.512,11.29779998]
[1771111317654,3.75780503,88.559,88.52,2.85906616]
[1771111318549,3.75780503,88.557,88.521,11.29675444]
[1771111319352,3.75780503,88.557,88.522,4.0033601]
[1771111320855,3.75780503,88.555,88.524,4.0033601]
[1771111321676,3.75780503,88.555,88.45,2.95906616]
[1771111321677,2.85906616,88.53,88.488,4.0033601]
[1771111321971,3.75780503,88.528,88.489,4.0033601]
[1771111322338,3.75780503,88.528,88.491,4.0033601]
[1771111323259,11.29598879,88.527,88.491,4.0033601]
[1771111323649,3.75780503,88.526,88.491,4.0033601]
[1771111324858,11.29598879,88.527,88.492,4.0033601]
[1771111325064,3.75780503,88.526,88.492,4.0033601]
[1771111325354,3.75780503,88.524,88.492,4.0033601]
[1771111326061,3.75780503,88.524,88.494,4.0033601]
[1771111327552,3.75780503,88.522,88.486,4.0033601]
[1771111328735,3.75780503,88.522,88.48,2.95906616]
[1771111328736,3.75780503,88.519,88.48,0.1]
[1771111328938,3.75780503,88.517,88.48,0.1]
[1771111329137,3.75780503,88.509,88.48,0.1]
[1771111329332,3.75780503,88.507,88.48,0.1]
[1771111330652,3.75780503,88.505,88.48,0.1]
[1771111332360,3.75780503,88.503,88.48,0.1]
[1771111332744,3.75780503,88.501,88.48,0.1]
[1771111333735,3.80671706,88.499,88.48,0.1]
[1771111334555,3.80671706,88.497,88.48,0.1]
[1771111337037,3.80671706,88.496,88.48,0.1]
[1771111337241,15.10666282,88.496,88.48,0.1]
[1771111337963,11.29994576,88.496,88.481,3.89775712]